fUSD/lending_fUSD_20250804
["ID","MTS","AMOUNT","RATE_DAILY","PERIOD"]
[377243429,1754306034252,-437.18,0.00041369,2]
[377243430,1754306034262,-2822.69,0.00041369,2]
[377243431,1754306034271,-400.0,0.00041369,2]
[377243432,1754306034280,-958.47,0.00041369,2]
[377243433,1754306034290,-4257.32,0.00041369,2]
[377243434,1754306034299,-1692.49,0.00041369,2]
[377243435,1754306034308,-8447.34,0.00041369,2]
[377243436,1754306034320,-1474.41,0.00041369,2]
[377243437,1754306034330,-12684.74,0.00041369,2]
[377243438,1754306034338,-8555.46,0.00041369,2]
[377243439,1754306034348,-1233.77,0.00041369,2]
[377243440,1754306034357,-1370.77,0.00041369,2]
[377243441,1754306034367,-400.0,0.00041369,2]
[377243442,1754306034376,-920.62,0.00041369,2]
[377243443,1754306034385,-1888.39,0.00041369,2]
[377243444,1754306034394,-1431.25,0.00041369,2]
[377243445,1754306034404,-1147.83,0.00041369,2]
[377243446,1754306034413,-2271.19,0.00041369,2]
[377243447,1754306034423,-1817.19,0.00041369,2]
[377243448,1754306034433,-1907.39,0.00041369,2]
[377243449,1754306034442,-400.0,0.00041369,2]
[377243450,1754306034451,-2068.75,0.00041369,2]
[377243451,1754306034461,-2687.79,0.00041369,2]
[377243452,1754306034470,-2214.61,0.00041369,2]
[377243453,1754306034479,-400.0,0.00041369,2]
[377243454,1754306034489,-400.0,0.00041369,2]
[377243455,1754306034498,-802.2,0.00041369,2]
[377243456,1754306034508,-670.02,0.00041369,2]
[377243457,1754306034517,-78789.54,0.00041369,2]
[377243458,1754306034527,-1614.22,0.00041369,2]
[377243459,1754306034536,-579.73,0.00041369,2]
[377243460,1754306034547,-1690.87,0.00041369,2]
[377243461,1754306034556,-1475.5,0.00041369,2]
[377243462,1754306034565,-1594.85,0.00041369,2]
[377243463,1754306034574,-400.0,0.00041369,2]
[377243464,1754306034584,-11200.4,0.00041369,2]
[377243465,1754306034594,-1475.71,0.00041369,2]
[377243466,1754306034603,-1258.18,0.00041369,2]
[377243467,1754306034612,-1043.71,0.00041369,2]
[377243468,1754306034622,-2169.93,0.00041369,2]
[377243469,1754306034631,-1778.93,0.00041369,2]
[377243470,1754306034641,-498.32,0.00041369,2]
[377243471,1754306034650,-898.73,0.00041369,2]
[377243472,1754306034660,-1556.28,0.00041369,2]
[377243473,1754306034670,-3118.04,0.00041369,2]
[377243474,1754306034679,-392.02601003,0.00041369,2]
[377243475,1754306034689,-1857.39,0.00041369,2]
[377243476,1754306034698,-7506.25,0.00041369,2]
[377243477,1754306034707,-1191.23,0.00041369,2]
[377243478,1754306034716,-1349.97,0.00041369,2]
[377243479,1754306034726,-577.79,0.00041369,2]
[377243480,1754306034735,-1074.04,0.00041369,2]
[377243481,1754306034744,-3769.24,0.00041369,2]
[377243482,1754306034771,-988.14,0.00041369,2]
[377243483,1754306034781,-1741.31,0.00041369,2]
[377243484,1754306034790,-427.19157654,0.00041369,2]
[377243485,1754306034799,-1932.57,0.00041369,2]
[377243486,1754306034808,-3095.42,0.00041369,2]
[377243487,1754306034817,-1252.42,0.00041369,2]
[377243488,1754306034826,-1555.06,0.00041369,2]
[377243489,1754306034836,-3383.45,0.00041369,2]
[377243490,1754306034844,-400.0,0.00041369,2]
[377243491,1754306034854,-495.93,0.00041369,2]
[377243492,1754306034864,-400.0,0.00041369,2]
[377243493,1754306034876,-2072.61,0.00041369,2]
[377243494,1754306034885,-1985.84,0.00041369,2]
[377243495,1754306034896,-1753.85,0.00041369,2]
[377243496,1754306034906,-1602.8,0.00041369,2]
[377243497,1754306034915,-400.0,0.00041369,2]
[377243498,1754306034925,-3681.37,0.00041369,2]
[377243499,1754306034935,-400.0,0.00041369,2]
[377243500,1754306034943,-1605.29,0.00041369,2]
[377243501,1754306034956,-1657.08,0.00041369,2]
[377243502,1754306034965,-1613.77,0.00041369,2]
[377243503,1754306034975,-1726.45,0.00041369,2]
[377243504,1754306034984,-268.73,0.00041369,2]
[377243505,1754306034994,-1109.72,0.00041369,2]
[377243506,1754306035003,-400.0,0.00041369,2]
[377243507,1754306035013,-1265.39,0.00041369,2]
[377243508,1754306035024,-531.77,0.00041369,2]
[377243509,1754306035034,-1790.09,0.00041369,2]
[377243510,1754306035043,-400.0,0.00041369,2]
[377243511,1754306035052,-2197.37,0.00041369,2]
[377243512,1754306035062,-994.35,0.00041369,2]
[377243513,1754306035071,-432.23388071,0.00041369,2]
[377243514,1754306035080,-400.0,0.00041369,2]
[377243515,1754306035090,-1207.63,0.00041369,2]
[377243516,1754306035099,-1697.44,0.00041369,2]
[377243517,1754306035109,-1044.0,0.00041369,2]
[377243518,1754306035118,-1273.07,0.00041369,2]
[377243519,1754306035127,-400.0,0.00041369,2]
[377243520,1754306035137,-215.85692034,0.00041369,2]
[377243521,1754306035147,-971.37,0.00041369,2]
[377243522,1754306035156,-1153.38,0.00041369,2]
[377243523,1754306035165,-400.0,0.00041369,2]
[377243524,1754306035175,-1809.15,0.00041369,2]
[377243525,1754306035184,-8777.73,0.00041369,2]
[377243526,1754306035194,-596.6,0.00041369,2]
[377243527,1754306035203,-2275.44,0.00041369,2]
[377243528,1754306035213,-1037.03,0.00041369,2]
[377243529,1754306035222,-1600.04,0.00041369,2]
[377243530,1754306035232,-599.54,0.00041369,2]
[377243531,1754306035241,-490.62,0.00041369,2]
[377243532,1754306035250,-1213.48,0.00041369,2]
[377243533,1754306035259,-1097.82,0.00041369,2]
[377243534,1754306035268,-6082.8,0.00041369,2]
[377243535,1754306035277,-797.89,0.00041369,2]
[377243536,1754306035286,-448.66,0.00041369,2]
[377243537,1754306035296,-596.19,0.00041369,2]
[377243538,1754306035305,-10707.5,0.00041369,2]
[377243539,1754306035314,-1518.17,0.00041369,2]
[377243540,1754306035324,-4934.5,0.00041369,2]
[377243541,1754306035333,-2575.64,0.00041369,2]
[377243542,1754306035343,-400.0,0.00041369,2]
[377243543,1754306035353,-400.0,0.00041369,2]
[377243544,1754306035362,-1048.1,0.00041369,2]
[377243545,1754306035372,-2188.32,0.00041369,2]
[377243546,1754306035381,-1936.12,0.00041369,2]
[377243547,1754306035391,-1283.58,0.00041369,2]
[377243548,1754306035401,-1614.51,0.00041369,2]
[377243549,1754306035410,-586.94,0.00041369,2]
[377243550,1754306035420,-1367.27,0.00041369,2]
[377243551,1754306035429,-400.0,0.00041369,2]
[377243552,1754306035439,-400.0,0.00041369,2]
[377243553,1754306035449,-1400.57,0.00041369,2]
[377243554,1754306035458,-500.49,0.00041369,2]
[377243555,1754306035468,-400.0,0.00041369,2]
[377243556,1754306035477,-1339.76,0.00041369,2]
[377243557,1754306035487,-3431.45,0.00041369,2]
[377243558,1754306035497,-1254.59,0.00041369,2]
[377243559,1754306035507,-1128.88,0.00041369,2]
[377243560,1754306035516,-16704.11,0.00041369,2]
[377243561,1754306035526,-1799.3,0.00041369,2]
[377243562,1754306035536,-4814.39,0.00041369,2]
[377243563,1754306035545,-400.0,0.00041369,2]
[377243564,1754306035565,-1494.19,0.00041369,2]
[377243565,1754306035575,-871.27,0.00041369,2]
[377243566,1754306035586,-1442.54,0.00041369,2]
[377243567,1754306035596,-2112.05,0.00041369,2]
[377243568,1754306035605,-525.6,0.00041369,2]
[377243569,1754306035615,-400.0,0.00041369,2]
[377243570,1754306035624,-2310.1,0.00041369,2]
[377243571,1754306035633,-953.11,0.00041369,2]
[377243572,1754306035643,-637.09,0.00041369,2]
[377243573,1754306035652,-571.02,0.00041369,2]
[377243574,1754306035662,-2192.65,0.00041369,2]
[377243575,1754306035671,-1651.01,0.00041369,2]
[377243576,1754306035681,-845.12,0.00041369,2]
[377243577,1754306035691,-958.06,0.00041369,2]
[377243578,1754306035701,-3310.33,0.00041369,2]
[377243579,1754306035711,-533.36,0.00041369,2]
[377243580,1754306035720,-1650.75,0.00041369,2]
[377243581,1754306035729,-781.29,0.00041369,2]
[377243582,1754306035739,-165.39,0.0004137,30]
[377243583,1754306035748,-150.0,0.0004137,30]
[377243584,1754306035758,-172.88,0.0004137,30]
[377243585,1754306035767,-537.09,0.0004137,30]
[377243586,1754306035777,-151.0,0.00041374,14]
[377243587,1754306035786,-267.396373,0.00041374,14]
[377243588,1754306035795,-151.0,0.00041374,14]
[377243589,1754306035804,-151.0,0.00041374,14]
[377243590,1754306035814,-152.388089,0.00041374,14]
[377243591,1754306035823,-151.0,0.00041374,14]
[377243592,1754306035832,-151.0,0.00041374,14]
[377243593,1754306035842,-151.0,0.00041374,14]
[377243594,1754306035854,-151.0,0.00041374,14]
[377243595,1754306035864,-151.0,0.00041374,14]
[377243596,1754306035874,-2821.29,0.000414,14]
[377243597,1754306035885,-759.0,0.0004141,2]
[377243598,1754306035894,-2588.34,0.00041503,2]
[377243599,1754306035904,-921.47,0.00041589,120]
[377243600,1754306035913,-1000.0,0.00041635,14]
[377243601,1754306035922,-1179.88,0.00041642,120]
[377243602,1754306035933,-151.0,0.00041643,14]
[377243603,1754306035943,-151.0,0.00041643,14]
[377243604,1754306035955,-151.0,0.00041643,14]
[377243605,1754306035965,-151.0,0.00041643,14]
[377243606,1754306035974,-234.6065796,0.00041643,2]
[377243607,1754306035983,-547.58,0.00041643,2]
[377243608,1754306035992,-458.04,0.00041643,2]
[377243609,1754306036001,-1200.66,0.00041643,2]
[377243610,1754306036010,-520.3,0.00041643,2]
[377243611,1754306036019,-586.47,0.00041643,2]
[377243612,1754306036029,-400.0,0.00041643,2]
[377243613,1754306036039,-452.57,0.00041643,2]
[377243614,1754306036049,-1404.01,0.00041643,2]
[377243615,1754306036060,-400.0,0.00041643,2]
[377243616,1754306036069,-472.84,0.00041643,2]
[377243617,1754306036080,-1341.8,0.00041643,2]
[377243618,1754306036089,-484.06,0.00041643,2]
[377243619,1754306036098,-667.41,0.00041643,2]
[377243620,1754306036107,-1693.03,0.00041643,2]
[377243621,1754306036116,-537.19,0.00041643,2]
[377243622,1754306036126,-849.99,0.00041643,2]
[377243623,1754306036142,-931.14,0.00041643,2]
[377243624,1754306036151,-458.07,0.00041643,2]
[377243625,1754306036160,-1076.15,0.00041643,2]
[377243626,1754306036169,-400.0,0.00041643,2]
[377243627,1754306036178,-1903.28,0.00041643,2]
[377243628,1754306036187,-400.0,0.00041643,2]
[377243629,1754306036196,-643.67,0.00041643,2]
[377243630,1754306036204,-1064.8,0.00041643,2]
[377243631,1754306036214,-595.01,0.00041643,2]
[377243632,1754306036223,-1756.29,0.00041643,2]
[377243633,1754306036232,-824.14,0.00041643,2]
[377243634,1754306036241,-298.18599587,0.00041643,2]
[377243635,1754306036249,-400.0,0.00041643,2]
[377243636,1754306036259,-1696.93,0.00041643,2]
[377243637,1754306036268,-767.86,0.00041643,2]
[377243638,1754306036278,-1492.28,0.00041643,2]
[377243639,1754306036287,-400.0,0.00041643,2]
[377243640,1754306036296,-400.0,0.00041643,2]
[377243641,1754306036305,-400.0,0.00041643,2]
[377243642,1754306036314,-661.87,0.00041643,2]
[377243643,1754306036323,-168.71808982,0.00041643,2]
[377243644,1754306036332,-400.0,0.00041643,2]
[377243645,1754306036341,-400.45,0.00041643,2]
[377243646,1754306036353,-1939.24,0.00041643,2]
[377243647,1754306036362,-786.11,0.00041643,2]
[377243648,1754306036372,-835.46,0.00041643,2]
[377243649,1754306036383,-1820.66,0.00041643,2]
[377243650,1754306036393,-463.48,0.00041643,2]
[377243651,1754306036404,-400.0,0.00041643,2]
[377243652,1754306036415,-1385.33,0.00041643,2]
[377243653,1754306036425,-499.13,0.00041643,2]
[377243654,1754306036435,-498.89,0.00041643,2]
[377243655,1754306036444,-1516.62,0.00041643,2]
[377243656,1754306036453,-400.0,0.00041643,2]
[377243657,1754306036465,-400.0,0.00041643,2]
[377243658,1754306036475,-400.0,0.00041643,2]
[377243659,1754306036484,-900.0,0.00041643,2]
[377243660,1754306036494,-550.11,0.00041643,2]
[377243661,1754306036503,-1067.05,0.00041643,2]
[377243662,1754306036512,-454.35,0.00041643,2]
[377243663,1754306036522,-915.17,0.00041643,2]
[377243664,1754306036531,-1153.57,0.00041643,2]
[377243665,1754306036541,-400.0,0.00041643,2]
[377243666,1754306036550,-470.47,0.00041643,2]
[377243667,1754306036559,-400.0,0.00041643,2]
[377243668,1754306036568,-1488.11,0.00041643,2]
[377243669,1754306036578,-742.88,0.00041643,2]
[377243670,1754306036587,-661.14,0.00041643,2]
[377243671,1754306036597,-441.54,0.00041643,2]
[377243672,1754306036606,-916.79,0.00041643,2]
[377243673,1754306036615,-587.55,0.00041643,2]
[377243674,1754306036625,-424.37,0.00041643,2]
[377243675,1754306036636,-1102.43,0.00041643,2]
[377243676,1754306036645,-400.0,0.00041643,2]
[377243677,1754306036654,-1188.91,0.00041643,2]
[377243678,1754306036663,-1819.37,0.00041643,2]
[377243679,1754306036673,-439.11,0.00041643,2]
[377243680,1754306036682,-400.0,0.00041643,2]
[377243681,1754306036692,-1119.27,0.00041643,2]
[377243682,1754306036702,-400.0,0.00041643,2]
[377243683,1754306036713,-884.11,0.00041643,2]
[377243684,1754306036725,-465.18,0.00041643,2]
[377243685,1754306036734,-400.0,0.00041643,2]
[377243686,1754306036744,-1124.7,0.00041643,2]
[377243687,1754306036754,-953.16,0.00041643,2]
[377243688,1754306036764,-353.63921288,0.00041643,2]
[377243689,1754306036775,-449.54,0.00041643,2]
[377243690,1754306036785,-400.0,0.00041643,2]
[377243691,1754306036796,-977.67,0.00041643,2]
[377243692,1754306036806,-1903.44,0.00041643,2]
[377243693,1754306036816,-2558.85,0.00041643,2]
[377243694,1754306036825,-315.86443169,0.00041643,2]
[377243695,1754306036835,-480.36,0.00041643,2]
[377243696,1754306036844,-400.0,0.00041643,2]
[377243697,1754306036854,-2716.06,0.00041643,2]
[377243698,1754306036863,-1797.0,0.00041643,2]
[377243699,1754306036873,-400.0,0.00041643,2]
[377243700,1754306036882,-1399.58,0.00041643,2]
[377243701,1754306036891,-459.32,0.00041643,2]
[377243702,1754306036901,-2022.23,0.00041643,2]
[377243703,1754306036910,-687.73,0.00041643,2]
[377243704,1754306036919,-400.0,0.00041643,2]
[377243705,1754306036929,-452.62,0.00041643,2]
[377243706,1754306036938,-1027.4,0.00041643,2]
[377243707,1754306036948,-400.0,0.00041643,2]
[377243708,1754306036961,-4159.78,0.00041643,2]
[377243709,1754306036974,-743.48,0.00041643,2]
[377243710,1754306036983,-500.0,0.00041643,2]
[377243711,1754306036992,-400.0,0.00041643,2]
[377243712,1754306037002,-400.0,0.00041643,2]
[377243713,1754306037011,-1103.2,0.00041643,2]
[377243714,1754306037021,-2146.76,0.00041643,2]
[377243715,1754306037036,-400.0,0.00041643,2]
[377243716,1754306037046,-697.9,0.00041643,2]
[377243717,1754306037055,-259.33968731,0.00041643,2]
[377243718,1754306037064,-700.27,0.00041643,2]
[377243719,1754306037074,-1197.92,0.00041643,2]
[377243720,1754306037083,-396.69907997,0.00041643,2]
[377243721,1754306037101,-442.05,0.00041643,2]
[377243722,1754306037113,-400.0,0.00041643,2]
[377243723,1754306037123,-763.21,0.00041643,2]
[377243724,1754306037132,-664.53,0.00041643,2]
[377243725,1754306037141,-862.35,0.00041643,2]
[377243726,1754306037151,-624.93,0.00041643,2]
[377243727,1754306037160,-793.15,0.00041643,2]
[377243728,1754306037169,-639.19,0.00041643,2]
[377243729,1754306037179,-313.9954528,0.00041643,2]
[377243730,1754306037188,-605.24,0.00041643,2]
[377243731,1754306037198,-400.0,0.00041643,2]
[377243732,1754306037207,-2472.68,0.00041643,2]
[377243733,1754306037216,-1841.68,0.00041643,2]
[377243734,1754306037226,-1091.38,0.00041643,2]
[377243735,1754306037235,-569.15,0.00041643,2]
[377243736,1754306037244,-482.87,0.00041643,2]
[377243737,1754306037254,-400.0,0.00041643,2]
[377243738,1754306037264,-1179.1,0.00041643,2]
[377243739,1754306037273,-400.0,0.00041643,2]
[377243740,1754306037283,-1320.13,0.00041643,2]
[377243741,1754306037292,-1348.28,0.00041643,2]
[377243742,1754306037302,-908.97,0.00041643,2]
[377243743,1754306037311,-1407.62,0.00041643,2]
[377243744,1754306037320,-1144.27,0.00041643,2]
[377243745,1754306037329,-448.56,0.00041643,2]
[377243746,1754306037339,-400.0,0.00041643,2]
[377243747,1754306037349,-853.71,0.00041643,2]
[377243748,1754306037358,-609.84,0.00041643,2]
[377243749,1754306037368,-400.0,0.00041643,2]
[377243750,1754306037377,-1274.99,0.00041643,2]
[377243751,1754306037387,-800.16,0.00041643,2]
[377243752,1754306037397,-600.02,0.00041643,2]
[377243753,1754306037406,-2778.93,0.00041643,2]
[377243754,1754306037416,-500.6,0.00041643,2]
[377243755,1754306037425,-499.94,0.00041643,2]
[377243756,1754306037435,-627.38,0.00041643,2]
[377243757,1754306037444,-787.7,0.00041643,2]
[377243758,1754306037607,-461.32,0.00041643,2]
[377243759,1754306037619,-1107.49,0.00041643,2]
[377243760,1754306037629,-400.0,0.00041643,2]
[377243761,1754306037638,-400.0,0.00041643,2]
[377243762,1754306037648,-1182.54,0.00041643,2]
[377243763,1754306037657,-2273.69,0.00041643,2]
[377243764,1754306037667,-790.39,0.00041643,2]
[377243765,1754306037676,-400.0,0.00041643,2]
[377243766,1754306037686,-400.0,0.00041643,2]
[377243767,1754306037696,-400.0,0.00041643,2]
[377243768,1754306037705,-2544.09,0.00041643,2]
[377243769,1754306037715,-746.2,0.00041643,2]
[377243770,1754306037726,-1066.14,0.00041643,2]
[377243771,1754306037736,-513.6,0.00041643,2]
[377243772,1754306037745,-856.62,0.00041643,2]
[377243773,1754306037756,-445.82,0.00041643,2]
[377243774,1754306037765,-1070.42,0.00041643,2]
[377243775,1754306037775,-548.68,0.00041643,2]
[377243776,1754306037785,-400.0,0.00041643,2]
[377243777,1754306037795,-413.36,0.00041643,2]
[377243778,1754306037804,-400.0,0.00041643,2]
[377243779,1754306037814,-460.79,0.00041643,2]
[377243780,1754306037825,-865.19,0.00041643,2]
[377243781,1754306037835,-1968.28,0.00041643,2]
[377243782,1754306037844,-1119.16,0.00041643,2]
[377243783,1754306037853,-1422.91,0.00041643,2]
[377243784,1754306037863,-400.0,0.00041643,2]
[377243785,1754306037873,-1000.0,0.00041643,2]
[377243786,1754306037883,-1354.16,0.00041643,2]
[377243787,1754306037892,-625.15,0.00041643,2]
[377243788,1754306037902,-400.0,0.00041643,2]
[377243789,1754306037912,-1598.25,0.00041643,2]
[377243790,1754306037922,-249.85446578,0.00041643,2]
[377243791,1754306037932,-1192.41,0.00041643,2]
[377243792,1754306037941,-400.0,0.00041643,2]
[377243793,1754306037955,-668.58,0.00041643,2]
[377243794,1754306037966,-575.89,0.00041643,2]
[377243795,1754306037976,-400.0,0.00041643,2]
[377243796,1754306037986,-1116.34,0.00041643,2]
[377243797,1754306037997,-1214.62,0.00041643,2]
[377243798,1754306038007,-1137.04,0.00041643,2]
[377243799,1754306038017,-499.95126576,0.00041643,2]
[377243800,1754306038027,-1590.64,0.00041643,2]
[377243801,1754306038036,-400.0,0.00041643,2]
[377243802,1754306038046,-1138.57,0.00041643,2]
[377243803,1754306038056,-1069.29,0.00041643,2]
[377243804,1754306038066,-400.0,0.00041643,2]
[377243805,1754306038075,-400.0,0.00041643,2]
[377243806,1754306038085,-400.0,0.00041643,2]
[377243807,1754306038095,-219.92,0.00041643,2]
[377243808,1754306038105,-1131.33,0.00041643,2]
[377243809,1754306038115,-400.0,0.00041643,2]
[377243810,1754306038125,-1171.06,0.00041643,2]
[377243811,1754306038134,-894.77,0.00041643,2]
[377243812,1754306038143,-1384.7,0.00041643,2]
[377243813,1754306038152,-599.89,0.00041643,2]
[377243814,1754306038162,-2355.79,0.00041643,2]
[377243815,1754306038172,-1091.28,0.00041643,2]
[377243816,1754306038181,-400.0,0.00041643,2]
[377243817,1754306038192,-400.0,0.00041643,2]
[377243818,1754306038202,-2327.34,0.00041643,2]
[377243819,1754306038211,-781.86,0.00041643,2]
[377243820,1754306038221,-501.83,0.00041643,2]
[377243821,1754306038230,-773.66,0.00041643,2]
[377243822,1754306038240,-1915.51,0.00041643,2]
[377243823,1754306038249,-892.62,0.00041643,2]
[377243824,1754306038259,-400.0,0.00041643,2]
[377243825,1754306038269,-829.75,0.00041643,2]
[377243826,1754306038278,-538.38,0.00041643,2]
[377243827,1754306038287,-1000.94,0.00041643,2]
[377243828,1754306038297,-1098.02,0.00041643,2]
[377243829,1754306038307,-1453.05,0.00041643,2]
[377243830,1754306038316,-695.84,0.00041643,2]
[377243831,1754306038326,-437.7,0.00041643,2]
[377243832,1754306038337,-1242.82,0.00041643,2]
[377243833,1754306038346,-724.66,0.00041643,2]
[377243834,1754306038356,-1119.1,0.00041643,2]
[377243835,1754306038368,-917.85,0.00041643,2]
[377243836,1754306038379,-2290.17,0.00041643,2]
[377243837,1754306038389,-1165.58,0.00041643,2]
[377243838,1754306038399,-400.0,0.00041643,2]
[377243839,1754306038409,-1308.63,0.00041643,2]
[377243840,1754306038419,-801.64,0.00041643,2]
[377243841,1754306038430,-906.75,0.00041643,2]
[377243842,1754306038440,-400.0,0.00041643,2]
[377243843,1754306038454,-564.37,0.00041643,2]
[377243844,1754306038469,-918.46,0.00041643,2]
[377243845,1754306038479,-1397.01,0.00041643,2]
[377243846,1754306038488,-2104.64,0.00041643,2]
[377243847,1754306038499,-1334.51,0.00041643,2]
[377243848,1754306038509,-1040.59,0.00041643,2]
[377243849,1754306038518,-781.51,0.00041643,2]
[377243850,1754306038528,-1874.18,0.00041643,2]
[377243851,1754306038539,-1021.01,0.00041643,2]
[377243852,1754306038548,-1353.35,0.00041643,2]
[377243853,1754306038558,-345.03118446,0.00041643,2]
[377243854,1754306038568,-400.0,0.00041643,2]
[377243855,1754306038578,-1025.08,0.00041643,2]
[377243856,1754306038587,-627.8,0.00041643,2]
[377243857,1754306038597,-1868.95,0.00041643,2]
[377243858,1754306038607,-468.7,0.00041643,2]
[377243859,1754306038617,-914.79,0.00041643,2]
[377243860,1754306038626,-1387.83,0.00041643,2]
[377243861,1754306038635,-1314.14,0.00041643,2]
[377243862,1754306038645,-1038.98,0.00041643,2]
[377243863,1754306038654,-1014.44,0.00041643,2]
[377243864,1754306038663,-935.88,0.00041643,2]
[377243865,1754306038673,-925.88,0.00041643,2]
[377243866,1754306038682,-400.0,0.00041643,2]
[377243867,1754306038692,-590.39,0.00041643,2]
[377243868,1754306038701,-1614.1,0.00041643,2]
[377243869,1754306038711,-710.0,0.00041643,2]
[377243870,1754306038721,-1412.5,0.00041643,2]
[377243871,1754306038730,-608.78,0.00041643,2]
[377243872,1754306038739,-400.0,0.00041643,2]
[377243873,1754306038750,-1252.59,0.00041643,2]
[377243874,1754306038761,-400.0,0.00041643,2]
[377243875,1754306038771,-856.19,0.00041643,2]
[377243876,1754306038781,-1142.6,0.00041643,2]
[377243877,1754306038790,-695.98,0.00041643,2]
[377243878,1754306038800,-400.0,0.00041643,2]
[377243879,1754306038810,-400.0,0.00041643,2]
[377243880,1754306038820,-793.48,0.00041643,2]
[377243881,1754306038829,-810.9,0.00041643,2]
[377243882,1754306038839,-1752.3,0.00041643,2]
[377243883,1754306038849,-400.0,0.00041643,2]
[377243884,1754306038858,-1639.2,0.00041643,2]
[377243885,1754306038869,-1057.57,0.00041643,2]
[377243886,1754306038879,-400.0,0.00041643,2]
[377243887,1754306038888,-1894.1,0.00041643,2]
[377243888,1754306038898,-400.0,0.00041643,2]
[377243889,1754306038908,-400.0,0.00041643,2]
[377243890,1754306038917,-1899.23,0.00041643,2]
[377243891,1754306038926,-1066.82,0.00041643,2]
[377243892,1754306038936,-1326.33,0.00041643,2]
[377243893,1754306038946,-405.69,0.00041643,2]
[377243894,1754306038959,-1189.48,0.00041643,2]
[377243895,1754306038969,-1704.15,0.00041643,2]
[377243896,1754306038979,-1046.61,0.00041643,2]
[377243897,1754306038989,-400.0,0.00041643,2]
[377243898,1754306039001,-833.04,0.00041643,2]
[377243899,1754306039011,-400.0,0.00041643,2]
[377243900,1754306039020,-684.99,0.00041643,2]
[377243901,1754306039030,-400.0,0.00041643,2]
[377243902,1754306039039,-925.69,0.00041643,2]
[377243903,1754306039048,-482.48,0.00041643,2]
[377243904,1754306039058,-596.8,0.00041643,2]
[377243905,1754306039067,-1463.3,0.00041643,2]
[377243906,1754306039076,-1295.25,0.00041643,2]
[377243907,1754306039086,-2145.64,0.00041643,2]
[377243908,1754306039095,-1283.66,0.00041643,2]
[377243909,1754306039105,-758.52,0.00041643,2]
[377243910,1754306039114,-1612.63,0.00041643,2]
[377243911,1754306039123,-721.69,0.00041643,2]
[377243912,1754306039133,-988.46,0.00041643,2]
[377243913,1754306039142,-7192.74,0.00041643,2]
[377243914,1754306039151,-896.0,0.00041643,2]
[377243915,1754306039161,-766.66,0.00041643,2]
[377243916,1754306039170,-453.42,0.00041643,2]
[377243917,1754306039179,-627.97,0.00041643,2]
[377243918,1754306039188,-400.0,0.00041643,2]
[377243919,1754306039198,-400.0,0.00041643,2]
[377243920,1754306039207,-1762.88,0.00041643,2]
[377243921,1754306039216,-1472.33,0.00041643,2]
[377243922,1754306039225,-400.0,0.00041643,2]
[377243923,1754306039234,-262.64314919,0.00041643,2]
[377243924,1754306039243,-1303.02,0.00041643,2]
[377243925,1754306039253,-796.7,0.00041643,2]
[377243926,1754306039262,-1414.12,0.00041643,2]
[377243927,1754306039271,-700.57,0.00041643,2]
[377243928,1754306039280,-553.07,0.00041643,2]